[Event "African-ch Women 2019"]
[Site "Hammamet"]
[Date "2019.07.17"]
[Round "9.1"]
[White "Mwango, Lorita"]
[Black "Wafa, Shrook"]
[Result "0-1"]
[ECO "A47"]
[WhiteElo "1931"]
[BlackElo "2144"]
[Annotator "NA"]
[PlyCount "130"]
[EventDate "2019.07.09"]
[EventType "swiss"]
[EventCountry "TUN"]
[SourceTitle "playchess.com"]
[Source "ChessBase"]
[SourceQuality "1"]
[TimeControl "5400+30"]

1. d4 {[%emt 0:00:00]} Nf6 {[%emt 0:00:00]} 2. Nf3 {[%emt 0:00:00]} e6 {[%emt 0:00:00]} 3. Bf4 {[%emt 0:00:09]} Be7 {[%emt 0:00:27]} 4. e3 {[%emt 0:00:07]} O-O {[%emt 0:00:13]} 5. Be2 {[%emt 0:00:07]} b6 {[%emt 0:00:31]} 6. O-O {[%emt 0:00:11]} Bb7 {[%emt 0:00:21]} 7. h3 {[%emt 0:00:24]} d6 {[%emt 0:01:16]} 8. Bh2 {[%emt 0:02:58]} Ne4 {[%emt 0:01:31]} 9. c4 {[%emt 0:00:47]} Nd7 {[%emt 0:00:43]} 10. Nc3 {[%emt 0:00:19]} Nxc3 {[%emt 0:01:28]} 11. bxc3 {[%emt 0:00:06]} f5 {[%emt 0:00:55]} 12. Qb3 {[%emt 0:04:11]} c5 {[%emt 0:05:06]} 13. Rad1 {[%emt 0:01:11]} Qc7 {[%emt 0:02:41]} 14. Rd2 {[%emt 0:02:18]} Rad8 {[%emt 0:02:36]} 15. Rfd1 {[%emt 0:01:42]} Nf6 {[%emt 0:04:08]} 16. Ng5 {[%emt 0:04:37]} Bc8 {[%emt 0:02:02]} 17. Rb2 {[%emt 0:02:45]} h6 {[%emt 0:02:53]} 18. Nf3 {[%emt 0:00:11]} Ne4 {[%emt 0:00:24]} 19. Qc2 {[%emt 0:04:09]} Bf6 {[%emt 0:03:55]} 20. Nd2 {[%emt 0:05:49]} Bb7 {[%emt 0:03:35]} 21. Bd3 {[%emt 0:02:35]} Nxd2 {[%emt 0:04:48]} 22. Qxd2 {[%emt 0:00:34]} Qf7 {[%emt 0:01:41]} 23. f3 {[%emt 0:01:11]} Qg6 {[%emt 0:02:34]} 24. Rf1 {[%emt 0:03:53]} e5 {[%emt 0:01:45]} 25. Be2 {[%emt 0:04:22]} Rfe8 {[%emt 0:05:39]} 26. d5 {[%emt 0:01:29]} Bc8 {[%emt 0:03:21]} 27. Qc2 {[%emt 0:01:35]} Bg5 {[%emt 0:02:17]} 28. f4 {[%emt 0:03:16]} exf4 {[%emt 0:03:15]} 29. exf4 {[%emt 0:02:10]} Bf6 {[%emt 0:00:45]} 30. Bd3 {[%emt 0:00:16]} Re3 {[%emt 0:01:34]} 31. Kh1 {[%emt 0:00:22]} Rde8 {[%emt 0:01:25]} 32. Rbb1 {[%emt 0:00:32]} Bd7 {[%emt 0:05:01]} 33. Bg1 {[%emt 0:00:59]} R3e7 {[%emt 0:07:37]} 34. Bf2 {[%emt 0:05:56]} Qh5 {[%emt 0:00:43]} 35. Rbe1 {[%emt 0:00:53]} Rxe1 {[%emt 0:05:21]} 36. Rxe1 {[%emt 0:00:11]} Rxe1+ {[%emt 0:00:16]} 37. Bxe1 {[%emt 0:00:10]} Qe8 {[%emt 0:00:14]} 38. Qe2 {[%emt 0:00:31]} Qxe2 {[%emt 0:01:53]} 39. Bxe2 {[%emt 0:00:08]} Kf7 {[%emt 0:01:00]} 40. Kg1 {[%emt 0:00:00]} g5 {[%emt 0:00:00]} 41. g3 {[%emt 0:00:00]} Ke7 {[%emt 0:00:00]} 42. Bd2 {[%emt 0:00:00]} g4 {[%emt 0:00:00]} 43. hxg4 {[%emt 0:00:00]} fxg4 {[%emt 0:00:00]} 44. Bd3 {[%emt 0:00:00]} h5 {[%emt 0:00:00]} 45. Be1 {[%emt 0:00:00]} Kf7 {[%emt 0:00:00]} 46. Kg2 {[%emt 0:00:00]} Bg7 {[%emt 0:00:00]} 47. Kf2 {[%emt 0:00:00]} Kf6 {[%emt 0:00:00]} 48. a3 {[%emt 0:00:00]} Bf5 {[%emt 0:00:00]} 49. Be2 {[%emt 0:00:00]} Bc2 {[%emt 0:00:00]} 50. Ke3 {[%emt 0:00:00]} Kf5 {[%emt 0:00:00]} 51. Bf1 {[%emt 0:00:00]} Bh6 {[%emt 0:00:00]} 52. Bg2 {[%emt 0:00:00]} h4 {[%emt 0:00:00]} 53. Bh1 {[%emt 0:00:00]} h3 {[%emt 0:00:00]} 54. Bf2 {[%emt 0:00:00]} Bg7 {[%emt 0:00:00]} 55. Be1 {[%emt 0:00:00]} Bf6 {[%emt 0:00:00]} 56. Bd2 {[%emt 0:00:00]} a6 {[%emt 0:00:00]} 57. Be1 {[%emt 0:00:35]} Bd8 {[%emt 0:00:00]} 58. Bf2 {[%emt 0:05:52]} b5 {[%emt 0:00:00]} 59. cxb5 {[%emt 0:00:28]} axb5 {[%emt 0:00:00]} 60. Bg1 {[%emt 0:00:42]} c4 {[%emt 0:00:00]} 61. Ke2 {[%emt 0:02:33]} Be4 {[%emt 0:00:00]} 62. Bxe4+ {[%emt 0:02:22]} Kxe4 {[%emt 0:00:00]} 63. Kf1 {[%emt 0:00:21]} Kxd5 {[%emt 0:00:00]} 64. Bd4 {[%emt 0:00:18]} Ke4 {[%emt 0:00:00]} 65. Kf2 {[%emt 0:00:06]} d5 {[%emt 0:00:00]} 0-1

[Event "African-ch Women 2019"]
[Site "Hammamet"]
[Date "2019.07.17"]
[Round "9.2"]
[White "Wafa, Shahenda"]
[Black "Latreche, Sabrina"]
[Result "1-0"]
[ECO "C89"]
[WhiteElo "2175"]
[BlackElo "2062"]
[Annotator "NA"]
[PlyCount "97"]
[EventDate "2019.07.09"]
[EventType "swiss"]
[EventCountry "TUN"]
[SourceTitle "playchess.com"]
[Source "ChessBase"]
[SourceQuality "1"]
[TimeControl "5400+30"]

1. e4 {[%emt 0:00:00]} e5 {[%emt 0:00:00]} 2. Nf3 {[%emt 0:00:00]} Nc6 {[%emt 0:00:10]} 3. Bb5 {[%emt 0:00:00]} a6 {[%emt 0:00:29]} 4. Ba4 {[%emt 0:00:00]} Nf6 {[%emt 0:00:15]} 5. O-O {[%emt 0:00:10]} Be7 {[%emt 0:00:04]} 6. Re1 {[%emt 0:01:30]} b5 {[%emt 0:00:06]} 7. Bb3 {[%emt 0:00:04]} O-O {[%emt 0:00:12]} 8. c3 {[%emt 0:05:32]} d5 {[%emt 0:01:21]} 9. exd5 {[%emt 0:00:42]} Nxd5 {[%emt 0:00:06]} 10. Nxe5 {[%emt 0:00:22]} Nxe5 {[%emt 0:00:04]} 11. Rxe5 {[%emt 0:00:06]} c6 {[%emt 0:00:04]} 12. d4 {[%emt 0:00:43]} Bd6 {[%emt 0:00:15]} 13. Re1 {[%emt 0:00:27]} Qh4 {[%emt 0:00:18]} 14. g3 {[%emt 0:00:23]} Qh3 {[%emt 0:00:04]} 15. Re4 {[%emt 0:00:47]} Nf6 {[%emt 0:06:28]} 16. Rh4 {[%emt 0:00:59]} Qf5 {[%emt 0:01:18]} 17. Bc2 {[%emt 0:02:11]} Qd5 {[%emt 0:00:31]} 18. Qd3 {[%emt 0:05:05]} Re8 {[%emt 0:05:58]} 19. Be3 {[%emt 0:03:48]} g6 {[%emt 0:03:43]} 20. Bb3 {[%emt 0:06:14]} Qf5 {[%emt 0:00:09]} 21. Qxf5 {[%emt 0:05:39]} Bxf5 {[%emt 0:00:06]} 22. Nd2 {[%emt 0:01:01]} Ng4 {[%emt 0:00:57]} 23. Bg5 {[%emt 0:02:00]} h6 {[%emt 0:03:02]} 24. Bxh6 {[%emt 0:17:26]} Nxh6 {[%emt 0:05:18]} 25. Rxh6 {[%emt 0:00:13]} Kg7 {[%emt 0:05:20]} 26. Rh4 {[%emt 0:00:35]} Be7 {[%emt 0:04:51]} 27. Rf4 {[%emt 0:02:28]} Bg5 {[%emt 0:00:05]} 28. Rxf5 {[%emt 0:00:24]} gxf5 {[%emt 0:00:04]} 29. Nf3 {[%emt 0:00:12]} Bf6 {[%emt 0:00:06]} 30. Kf1 {[%emt 0:04:15]} f4 {[%emt 0:05:12]} 31. g4 {[%emt 0:02:07]} Rac8 {[%emt 0:15:40]} 32. Rd1 {[%emt 0:04:06]} Rc7 {[%emt 0:05:52]} 33. h4 {[%emt 0:00:50]} Bd8 {[%emt 0:00:29]} 34. h5 {[%emt 0:01:32]} f6 {[%emt 0:04:07]} 35. Nh4 {[%emt 0:00:27]} f3 {[%emt 0:06:06]} 36. Nf5+ {[%emt 0:13:04]} Kh8 {[%emt 0:01:41]} 37. Nd6 {[%emt 0:01:35]} Ree7 {[%emt 0:07:40]} 38. Rd3 {[%emt 0:00:58]} Rcd7 {[%emt 0:00:58]} 39. Nf5 {[%emt 0:00:33]} Re4 {[%emt 0:00:58]} 40. Rxf3 {[%emt 0:00:00]} Rxg4 {[%emt 0:00:00]} 41. Be6 {[%emt 0:00:00]} Rh7 {[%emt 0:00:00]} 42. h6 {[%emt 0:00:00]} Re4 {[%emt 0:00:00]} 43. Bb3 {[%emt 0:00:00]} Bc7 {[%emt 0:00:00]} 44. Bc2 {[%emt 0:00:00]} Rf4 {[%emt 0:00:00]} 45. Re3 {[%emt 0:00:00]} Kg8 {[%emt 0:02:06]} 46. Re8+ {[%emt 0:00:00]} Kf7 {[%emt 0:00:25]} 47. Re7+ {[%emt 0:00:00]} Kg8 {[%emt 0:00:44]} 48. Bb3+ {[%emt 0:00:00]} Kf8 {[%emt 0:00:08]} 49. Rxh7 {[%emt 0:00:00]} 1-0

[Event "African-ch Women 2019"]
[Site "Hammamet"]
[Date "2019.07.17"]
[Round "9.3"]
[White "Moaataz, Ayah"]
[Black "Mezioud, Amina"]
[Result "1-0"]
[ECO "A23"]
[WhiteElo "2031"]
[BlackElo "2128"]
[Annotator "NA"]
[PlyCount "55"]
[EventDate "2019.07.09"]
[EventType "swiss"]
[EventCountry "TUN"]
[SourceTitle "playchess.com"]
[Source "ChessBase"]
[SourceQuality "1"]
[TimeControl "5400+30"]

1. c4 {[%emt 0:00:00]} e5 {[%emt 0:00:44]} 2. g3 {[%emt 0:00:00]} c6 {[%emt 0:00:06]} 3. Nf3 {[%emt 0:00:37]} e4 {[%emt 0:01:12]} 4. Nd4 {[%emt 0:00:04]} d5 {[%emt 0:00:14]} 5. cxd5 {[%emt 0:00:22]} cxd5 {[%emt 0:01:17]} 6. Bg2 {[%emt 0:04:13]} Nf6 {[%emt 0:02:19]} 7. O-O {[%emt 0:06:32]} Bc5 {[%emt 0:03:25]} 8. Nb3 {[%emt 0:01:33]} Bb6 {[%emt 0:00:02]} 9. d3 {[%emt 0:02:02]} O-O {[%emt 0:01:51]} 10. Nc3 {[%emt 0:01:02]} Bf5 {[%emt 0:07:30]} 11. Bg5 {[%emt 0:01:10]} exd3 {[%emt 0:24:20]} 12. Nxd5 {[%emt 0:15:19]} dxe2 {[%emt 0:04:23]} 13. Qxe2 {[%emt 0:00:21]} Re8 {[%emt 0:06:25]} 14. Bxf6 {[%emt 0:05:45]} Rxe2 {[%emt 0:04:28]} 15. Bxd8 {[%emt 0:00:06]} Bxd8 {[%emt 0:00:12]} 16. Nd4 {[%emt 0:21:15]} Rxb2 {[%emt 0:02:01]} 17. Nxf5 {[%emt 0:00:09]} Nc6 {[%emt 0:00:40]} 18. Rfb1 {[%emt 0:00:59]} Re2 {[%emt 0:03:17]} 19. Rxb7 {[%emt 0:02:10]} Ba5 {[%emt 0:04:47]} 20. Rc1 {[%emt 0:05:14]} Nd8 {[%emt 0:09:14]} 21. Re7 {[%emt 0:00:24]} Ne6 {[%emt 0:02:56]} 22. Nf6+ {[%emt 0:00:34]} gxf6 {[%emt 0:00:02]} 23. Bxa8 {[%emt 0:00:07]} h6 {[%emt 0:00:03]} 24. g4 {[%emt 0:06:27]} Kh7 {[%emt 0:01:07]} 25. Bd5 {[%emt 0:04:22]} Kg6 {[%emt 0:06:26]} 26. Bxe6 {[%emt 0:00:15]} Kg5 {[%emt 0:00:26]} 27. h4+ {[%emt 0:00:56]} Kf4 {[%emt 0:00:32]} 28. Rc4+ {[%emt 0:00:09]} 1-0

[Event "African-ch Women 2019"]
[Site "Hammamet"]
[Date "2019.07.17"]
[Round "9.4"]
[White "Elansary, Eman"]
[Black "Marzouk, Amira"]
[Result "1-0"]
[ECO "D05"]
[WhiteElo "1946"]
[BlackElo "1667"]
[Annotator "NA"]
[PlyCount "73"]
[EventDate "2019.07.09"]
[EventType "swiss"]
[EventCountry "TUN"]
[SourceTitle "playchess.com"]
[Source "ChessBase"]
[SourceQuality "1"]
[TimeControl "5400+30"]

1. d4 {[%emt 0:00:00]} d5 {[%emt 0:00:00]} 2. Nf3 {[%emt 0:00:00]} Nf6 {[%emt 0:00:04]} 3. e3 {[%emt 0:00:40]} c5 {[%emt 0:00:40]} 4. c3 {[%emt 0:01:00]} e6 {[%emt 0:03:01]} 5. Bd3 {[%emt 0:00:37]} Bd6 {[%emt 0:01:22]} 6. Nbd2 {[%emt 0:00:19]} O-O {[%emt 0:01:03]} 7. e4 {[%emt 0:02:13]} dxe4 {[%emt 0:03:52]} 8. Nxe4 {[%emt 0:00:07]} Nxe4 {[%emt 0:00:05]} 9. Bxe4 {[%emt 0:00:05]} cxd4 {[%emt 0:03:06]} 10. Nxd4 {[%emt 0:00:54]} a6 {[%emt 0:02:47]} 11. Qf3 {[%emt 0:02:54]} Qc7 {[%emt 0:01:25]} 12. Qh3 {[%emt 0:06:47]} f5 {[%emt 0:04:01]} 13. Bc2 {[%emt 0:00:23]} Nc6 {[%emt 0:02:40]} 14. Nxc6 {[%emt 0:01:55]} Qxc6 {[%emt 0:00:25]} 15. O-O {[%emt 0:00:43]} e5 {[%emt 0:08:32]} 16. Bb3+ {[%emt 0:01:16]} Kh8 {[%emt 0:00:05]} 17. Qd3 {[%emt 0:05:05]} e4 {[%emt 0:09:50]} 18. Qd5 {[%emt 0:04:39]} Qc7 {[%emt 0:06:58]} 19. g3 {[%emt 0:02:54]} Bd7 {[%emt 0:01:54]} 20. Rd1 {[%emt 0:02:49]} Rf6 {[%emt 0:00:17]} 21. Bf4 {[%emt 0:01:12]} Bxf4 {[%emt 0:22:07]} 22. Qxd7 {[%emt 0:00:45]} Be5 {[%emt 0:02:36]} 23. Qxc7 {[%emt 0:00:41]} Bxc7 {[%emt 0:00:05]} 24. Rd7 {[%emt 0:00:04]} Rc8 {[%emt 0:00:54]} 25. Rad1 {[%emt 0:00:19]} h6 {[%emt 0:01:13]} 26. Kf1 {[%emt 0:01:21]} b5 {[%emt 0:01:20]} 27. R1d5 {[%emt 0:01:47]} Bb6 {[%emt 0:02:39]} 28. Re5 {[%emt 0:02:55]} Rc7 {[%emt 0:05:16]} 29. Rdd5 {[%emt 0:07:15]} f4 {[%emt 0:04:05]} 30. g4 {[%emt 0:03:35]} e3 {[%emt 0:01:03]} 31. Rd8+ {[%emt 0:04:45]} Kh7 {[%emt 0:00:48]} 32. Bg8+ {[%emt 0:00:09]} Kg6 {[%emt 0:00:30]} 33. h4 {[%emt 0:00:08]} Rfc6 {[%emt 0:01:55]} 34. Rf8 {[%emt 0:01:09]} h5 {[%emt 0:03:39]} 35. Rg5+ {[%emt 0:01:28]} Kh6 {[%emt 0:00:19]} 36. Rxh5+ {[%emt 0:00:07]} Kg6 {[%emt 0:00:01]} 37. Bh7# {[%emt 0:00:18]} 1-0

[Event "African-ch Women 2019"]
[Site "Hammamet"]
[Date "2019.07.17"]
[Round "9.5"]
[White "Nassr, Lina"]
[Black "Miladi, Amen"]
[Result "1-0"]
[ECO "A24"]
[WhiteElo "1982"]
[BlackElo "1777"]
[Annotator "NA"]
[PlyCount "71"]
[EventDate "2019.07.09"]
[EventType "swiss"]
[EventCountry "TUN"]
[SourceTitle "playchess.com"]
[Source "ChessBase"]
[SourceQuality "1"]
[TimeControl "5400+30"]

1. c4 {[%emt 0:01:00]} Nf6 {[%emt 0:00:00]} 2. e3 {[%emt 0:00:03]} g6 {[%emt 0:00:07]} 3. Nc3 {[%emt 0:00:29]} Bg7 {[%emt 0:00:10]} 4. g3 {[%emt 0:01:44]} O-O {[%emt 0:00:11]} 5. Bg2 {[%emt 0:00:05]} d6 {[%emt 0:00:08]} 6. Nge2 {[%emt 0:00:12]} e5 {[%emt 0:00:42]} 7. O-O {[%emt 0:00:42]} Nbd7 {[%emt 0:02:07]} 8. d3 {[%emt 0:01:09]} a5 {[%emt 0:04:46]} 9. b3 {[%emt 0:04:42]} Re8 {[%emt 0:05:16]} 10. a3 {[%emt 0:07:11]} Nc5 {[%emt 0:08:15]} 11. e4 {[%emt 0:02:52]} c6 {[%emt 0:09:38]} 12. h3 {[%emt 0:07:01]} Nfd7 {[%emt 0:07:06]} 13. Be3 {[%emt 0:02:59]} f5 {[%emt 0:14:15]} 14. Qc2 {[%emt 0:02:36]} Qf6 {[%emt 0:08:26]} 15. d4 {[%emt 0:09:22]} Nxe4 {[%emt 0:08:55]} 16. Nxe4 {[%emt 0:03:54]} fxe4 {[%emt 0:00:05]} 17. Qxe4 {[%emt 0:09:05]} Qf7 {[%emt 0:01:48]} 18. Qc2 {[%emt 0:02:16]} Nf8 {[%emt 0:08:20]} 19. dxe5 {[%emt 0:01:59]} Bxe5 {[%emt 0:00:11]} 20. Rad1 {[%emt 0:01:02]} Bf5 {[%emt 0:00:54]} 21. Qd2 {[%emt 0:01:21]} Red8 {[%emt 0:02:31]} 22. Bb6 {[%emt 0:03:29]} Rdc8 {[%emt 0:03:24]} 23. f4 {[%emt 0:03:03]} Bg7 {[%emt 0:01:41]} 24. g4 {[%emt 0:02:25]} Ra6 {[%emt 0:02:11]} 25. Bxa5 {[%emt 0:02:57]} Bd7 {[%emt 0:00:39]} 26. a4 {[%emt 0:00:44]} Re8 {[%emt 0:01:02]} 27. Bc3 {[%emt 0:01:59]} Rxe2 {[%emt 0:01:16]} 28. Qxe2 {[%emt 0:00:20]} Bxc3 {[%emt 0:00:07]} 29. Rxd6 {[%emt 0:01:56]} Bb4 {[%emt 0:01:05]} 30. Rd3 {[%emt 0:00:41]} Ne6 {[%emt 0:00:34]} 31. f5 {[%emt 0:02:27]} Bc5+ {[%emt 0:00:50]} 32. Kh1 {[%emt 0:00:09]} Nd4 {[%emt 0:00:13]} 33. Qe5 {[%emt 0:01:40]} Ba7 {[%emt 0:02:19]} 34. c5 {[%emt 0:03:56]} Nxb3 {[%emt 0:02:51]} 35. fxg6 {[%emt 0:01:09]} Qxg6 {[%emt 0:03:36]} 36. Rxd7 {[%emt 0:00:50]} 1-0